bitfinex/quotes_BTCUSD_20251012
["timestamp","ask_amount","ask_price","bid_price","bid_amount"]
[1760232794855,0.34097729,110190.0,110180.0,0.27799568]
[1760232795068,0.34097729,110190.0,110180.0,0.27699568]
[1760232795281,0.34097729,110190.0,110180.0,0.27799568]
[1760232795488,0.52248196,110190.0,110180.0,0.08598]
[1760232795925,0.52248196,110190.0,110180.0,0.08498]
[1760232796149,0.52248196,110190.0,110180.0,0.08585575]
[1760232797616,0.52248196,110190.0,110180.0,0.08485575]
[1760232797829,0.52248196,110190.0,110180.0,0.3131644]
[1760232798042,0.52248196,110190.0,110180.0,0.29601229]
[1760232798713,0.34097729,110190.0,110180.0,0.29501229]
[1760232798912,0.52248196,110190.0,110180.0,0.29401229]
[1760232799111,0.52248196,110190.0,110180.0,0.29601229]
[1760232799316,0.52248196,110190.0,110180.0,0.26737689]
[1760232799528,0.52248196,110190.0,110180.0,0.26637689]
[1760232799769,0.34097729,110190.0,110180.0,0.26737689]
[1760232800800,0.34097729,110190.0,110180.0,0.26637689]
[1760232801002,0.18148875,110200.0,110180.0,0.26637689]
[1760232801203,0.18148875,110200.0,110190.0,0.07632046]
[1760232801615,0.18148875,110200.0,110190.0,0.10213046]
[1760232802029,0.21704245,110210.0,110190.0,0.28363513]
[1760232802245,0.02649007,110210.0,110200.0,0.2396582]
[1760232802452,9.124e-05,110210.0,110200.0,0.2654682]
[1760232802659,9.124e-05,110210.0,110200.0,0.9465213]
[1760232802865,9.124e-05,110210.0,110200.0,0.35418754]
[1760232803552,9.124e-05,110210.0,110200.0,0.35518754]
[1760232803741,9.124e-05,110210.0,110200.0,0.35418754]
[1760232804361,9.124e-05,110210.0,110200.0,0.35518754]
[1760232805612,9.124e-05,110210.0,110200.0,0.35618754]
[1760232806233,0.34009124,110210.0,110200.0,0.35618754]
[1760232807058,0.34009124,110210.0,110200.0,0.2674682]
[1760232807269,0.52156297,110210.0,110200.0,0.2674682]
[1760232807470,0.52275316,110210.0,110200.0,0.2674682]
[1760232808031,0.52275316,110210.0,110200.0,0.08598]
[1760232808608,0.52275316,110210.0,110200.0,0.002]
[1760232808609,0.60948316,110210.0,110200.0,0.002]
[1760232808817,0.5214882,110200.0,110190.0,0.01937]
[1760232809262,0.5214882,110200.0,110190.0,0.08398]
[1760232809464,0.5690682,110200.0,110190.0,0.04518]
[1760232809848,0.5214882,110200.0,110190.0,0.08398]
[1760232810272,0.5214882,110200.0,110190.0,0.12143654]
[1760232810490,0.5214882,110200.0,110190.0,0.12243654]
[1760232810827,0.5214882,110200.0,110190.0,0.08498]
[1760232811030,0.5214882,110200.0,110190.0,0.08598]
[1760232811237,0.5214882,110200.0,110190.0,0.04718]
[1760232811444,0.5214882,110200.0,110190.0,0.08598]
[1760232811652,0.5494282,110200.0,110190.0,0.02137]
[1760232811857,0.6082282,110200.0,110190.0,0.002]
[1760232813286,0.52150467,110190.0,110180.0,0.00097735]
[1760232813494,0.53930467,110190.0,110180.0,0.00097735]
[1760232813668,0.56591467,110190.0,110180.0,0.00097735]
[1760232813889,0.60507467,110190.0,110180.0,0.00097735]
[1760232814094,0.56591467,110190.0,110180.0,0.04852735]
[1760232814608,0.53930467,110190.0,110180.0,0.04852735]
[1760232814786,0.56591467,110190.0,110180.0,0.04852735]
[1760232815266,0.56591467,110190.0,110180.0,0.02327735]
[1760232815470,0.56591467,110190.0,110180.0,0.02822735]
[1760232815881,0.53930467,110190.0,110180.0,0.04952735]
[1760232816135,0.52150467,110190.0,110180.0,0.10167009]
[1760232816333,0.52150467,110190.0,110180.0,0.28319123]
[1760232816545,0.52150467,110190.0,110180.0,0.28219123]
[1760232816546,0.34,110190.0,110180.0,0.28219123]
[1760232816753,0.00059515,110200.0,110190.0,0.18150467]
[1760232816956,0.18208335,110200.0,110190.0,0.13414959]
[1760232817156,0.52208335,110200.0,110190.0,0.13414959]
[1760232817364,0.52208335,110200.0,110190.0,0.08778]
[1760232817574,0.56833335,110200.0,110190.0,0.04755]
[1760232817978,0.52208335,110200.0,110190.0,0.08778]
[1760232818178,0.56833335,110200.0,110190.0,0.04755]
[1760232819046,0.56833335,110200.0,110190.0,0.0213]
[1760232819259,0.52150467,110190.0,110180.0,0.02227735]
[1760232819515,0.52150467,110190.0,110180.0,0.06250735]
[1760232819751,0.52150467,110190.0,110180.0,0.04852735]
[1760232819965,0.56591467,110190.0,110180.0,0.00097735]
[1760232820192,0.52150467,110190.0,110180.0,0.08875735]
[1760232820400,0.52150467,110190.0,110180.0,0.11952163]
[1760232820816,0.52150467,110190.0,110180.0,0.13767374]
[1760232821019,0.52150467,110190.0,110180.0,0.12052163]
[1760232821483,0.18208442,110200.0,110180.0,0.32019488]
[1760232821693,0.52208442,110200.0,110190.0,0.06]
[1760232821899,0.52208442,110200.0,110190.0,0.11926128]
[1760232822110,0.52208442,110200.0,110190.0,0.08708]
[1760232822590,0.52208335,110200.0,110190.0,0.28673513]
[1760232822803,0.52208335,110200.0,110190.0,0.26858467]
[1760232823215,0.52208335,110200.0,110190.0,0.26958467]
[1760232824068,0.52208335,110200.0,110190.0,0.27058467]
[1760232824484,0.52208335,110200.0,110190.0,0.29607611]
[1760232827806,0.52208335,110200.0,110190.0,0.11457144]
[1760232828212,0.52208335,110200.0,110190.0,0.10723046]
[1760232829123,0.56908335,110200.0,110190.0,0.05004]
[1760232829637,0.54172335,110200.0,110190.0,0.05004]
[1760232829872,0.52208335,110200.0,110190.0,0.08708]
[1760232830074,0.54944335,110200.0,110190.0,0.04904]
[1760232830255,0.54944335,110200.0,110190.0,0.05004]
[1760232830497,0.56908335,110200.0,110190.0,0.04804]
[1760232830899,0.56908335,110200.0,110190.0,0.04904]
[1760232831306,0.52208335,110200.0,110190.0,0.09911574]
[1760232831514,0.34059515,110200.0,110190.0,0.28062041]
[1760232831722,0.52208335,110200.0,110190.0,0.09911574]
[1760232831931,0.52208335,110200.0,110190.0,0.76237449]
[1760232831932,0.34059515,110200.0,110190.0,0.76237449]
[1760232832144,0.52208335,110200.0,110190.0,0.28162041]
[1760232832556,0.52208335,110200.0,110190.0,0.28062041]
[1760232832764,0.52208335,110200.0,110190.0,0.27962041]
[1760232832976,0.52208335,110200.0,110190.0,0.28162041]
[1760232833185,0.52208335,110200.0,110190.0,0.27058467]
[1760232834125,0.52208335,110200.0,110190.0,0.08908]
[1760232835423,0.54944335,110200.0,110190.0,0.05004]
[1760232835835,0.52208335,110200.0,110190.0,0.08908]
[1760232836134,0.52208335,110200.0,110190.0,0.08808]
[1760232836346,0.52208335,110200.0,110190.0,0.29777244]
[1760232836553,0.34059515,110200.0,110190.0,0.29977244]
[1760232836758,0.52208335,110200.0,110190.0,0.29977244]
[1760232836967,0.34059515,110200.0,110190.0,0.29777244]
[1760232837374,0.34059515,110200.0,110190.0,0.76037606]
[1760232837556,0.34059515,110200.0,110190.0,0.29777244]
[1760232837932,0.34059515,110200.0,110190.0,0.26858467]
[1760232838140,0.34059515,110200.0,110190.0,0.26958467]
[1760232838341,0.52208335,110200.0,110190.0,0.26958467]
[1760232838726,0.52208335,110200.0,110190.0,0.27058467]
[1760232839927,0.54944335,110200.0,110190.0,0.05004]
[1760232840152,0.52208335,110200.0,110190.0,0.08908]
[1760232840359,0.54944335,110200.0,110190.0,0.05004]
[1760232840571,0.56908335,110200.0,110190.0,0.05004]
[1760232840777,0.60973335,110200.0,110190.0,0.002]
[1760232841030,0.56908335,110200.0,110190.0,0.02296]
[1760232841237,0.56908335,110200.0,110190.0,0.02096]
[1760232841446,0.56908335,110200.0,110190.0,0.04804]
[1760232841702,0.60973335,110200.0,110190.0,0.002]
[1760232841910,0.60973335,110200.0,110190.0,0.0902]
[1760232841911,0.52208335,110200.0,110190.0,0.0902]
[1760232842120,0.52208335,110200.0,110190.0,0.10735046]
[1760232842360,0.52208335,110200.0,110190.0,0.10935046]
[1760232842559,0.52208335,110200.0,110190.0,1.02215875]
[1760232842560,0.34059515,110200.0,110190.0,1.02215875]
[1760232842768,0.00059515,110200.0,110190.0,0.87232999]
[1760232842985,0.00059515,110200.0,110190.0,0.85217953]
[1760232843209,0.00059515,110200.0,110190.0,0.91821214]
[1760232843628,0.00059515,110200.0,110190.0,0.39057591]
[1760232843827,0.00059515,110200.0,110190.0,0.85317953]
[1760232844269,0.21751297,110220.0,110210.0,0.18147173]
[1760232844438,0.21751297,110220.0,110210.0,0.28755328]
[1760232844641,0.21751297,110220.0,110210.0,0.31398328]
[1760232844873,0.02697978,110220.0,110210.0,0.35559328]
[1760232845334,0.1814388,110230.0,110220.0,0.18145527]
[1760232845566,0.0233688,110230.0,110220.0,0.27000527]
[1760232845742,0.0233688,110230.0,110220.0,0.35591467]
[1760232845973,0.1814388,110230.0,110220.0,0.35591467]
[1760232846531,0.20530953,110230.0,110220.0,0.35591467]
[1760232846734,0.20530953,110230.0,110220.0,0.1744594]
[1760232846943,0.28866953,110230.0,110220.0,0.001]
[1760232847310,0.25012953,110230.0,110220.0,0.02743]
[1760232847948,0.20530953,110230.0,110220.0,0.08955]
[1760232849371,0.20530953,110230.0,110220.0,0.10249037]
[1760232849597,0.20530953,110230.0,110220.0,0.12099686]
[1760232850329,0.20530953,110230.0,110220.0,0.12988885]
[1760232850770,0.20709441,110230.0,110220.0,0.12099686]
[1760232851176,0.20709441,110230.0,110220.0,0.12906123]
[1760232851388,0.02565561,110230.0,110220.0,0.31219387]
[1760232851620,0.20709441,110230.0,110220.0,0.30245213]
[1760232852050,0.20709441,110230.0,110220.0,0.12099686]
[1760232852477,0.20709441,110230.0,110220.0,0.11999686]
[1760232852684,0.20709441,110230.0,110220.0,0.11899686]
[1760232852915,0.20709441,110230.0,110220.0,0.11999686]
[1760232853766,0.20709441,110230.0,110220.0,0.08955]
[1760232854457,0.20709441,110230.0,110220.0,0.09055]
[1760232856317,0.54709441,110230.0,110220.0,0.09055]
[1760232857375,0.54709441,110230.0,110220.0,0.27200527]
[1760232857594,0.54709441,110230.0,110220.0,0.09055]
[1760232857785,0.54709441,110230.0,110220.0,0.1660633]
[1760232859175,0.54709441,110230.0,110220.0,0.09055]
[1760232861245,0.54709441,110230.0,110220.0,0.27200527]
[1760232862939,0.54709441,110230.0,110220.0,0.09055]
[1760232864434,0.59191441,110230.0,110220.0,0.002]
[1760232864625,0.59191441,110230.0,110220.0,0.02843]
[1760232864817,0.59191441,110230.0,110220.0,0.04894]
[1760232865019,0.56632441,110230.0,110220.0,0.09055]
[1760232865222,0.54709441,110230.0,110220.0,0.08955]
[1760232865390,0.59191441,110230.0,110220.0,0.04894]
[1760232865595,0.59191441,110230.0,110220.0,0.04794]
[1760232866032,0.59191441,110230.0,110220.0,0.04894]
[1760232866261,0.54709441,110230.0,110220.0,0.11304414]
[1760232866682,0.54709441,110230.0,110220.0,0.11204414]
[1760232867166,0.54709441,110230.0,110220.0,0.11304414]
[1760232868468,0.54709441,110230.0,110220.0,0.13118966]
[1760232868695,0.36565561,110230.0,110220.0,0.31264493]
[1760232868913,0.54709441,110230.0,110220.0,0.75710303]
[1760232869123,0.54709441,110230.0,110220.0,0.11304414]
[1760232869770,0.57268441,110230.0,110220.0,0.04894]
[1760232870184,0.54709441,110230.0,110220.0,0.09055]
[1760232870598,0.57268441,110230.0,110220.0,0.04894]
[1760232870814,0.59191441,110230.0,110220.0,0.04894]
[1760232872404,0.54709441,110230.0,110220.0,0.08815]
[1760232872604,0.54709441,110230.0,110220.0,0.11716316]
[1760232873771,0.57452441,110230.0,110220.0,0.08815]
[1760232873970,0.54709441,110230.0,110220.0,0.08815]
[1760232874602,0.63297441,110230.0,110220.0,0.002]
[1760232874813,0.59375441,110230.0,110220.0,0.02955]
[1760232875239,0.54709441,110230.0,110220.0,0.08859]
[1760232875443,0.54709441,110230.0,110220.0,0.11764694]
[1760232879893,0.54709441,110230.0,110220.0,0.08859]
[1760232882057,0.36565561,110230.0,110220.0,0.75079441]
[1760232882295,0.36565561,110230.0,110220.0,0.73264889]
[1760232884204,0.54709441,110230.0,110220.0,0.27004527]
[1760232885750,0.36565561,110230.0,110220.0,0.27004527]
[1760232886003,0.36565561,110230.0,110220.0,0.31997793]
[1760232887073,0.54709441,110230.0,110220.0,0.31997793]
[1760232887867,0.54709441,110230.0,110220.0,0.13852266]
[1760232888232,0.54709441,110230.0,110220.0,0.31997793]
[1760232888805,0.54709441,110230.0,110220.0,0.13852266]
[1760232894855,0.54709441,110230.0,110220.0,0.31997793]
[1760232895645,0.54709441,110230.0,110220.0,0.13852266]
[1760232896227,0.59322441,110230.0,110220.0,0.04938]
[1760232896651,0.59322441,110230.0,110220.0,0.08806]
[1760232896857,0.56632441,110230.0,110220.0,0.08806]
[1760232897445,0.54709441,110230.0,110220.0,0.08806]
[1760232900137,0.54709441,110230.0,110220.0,0.10620552]
[1760232900339,0.54709441,110230.0,110220.0,0.19492486]
[1760232900505,0.54709441,110230.0,110220.0,0.17677934]
[1760232901520,0.54709441,110230.0,110220.0,0.08806]
[1760232903540,0.54709441,110230.0,110220.0,0.26951527]
[1760232903750,0.34178488,110230.0,110220.0,0.86154292]
[1760232903976,0.00178488,110230.0,110220.0,0.89169482]
[1760232904196,0.00178488,110230.0,110220.0,0.91899302]
[1760232904405,0.00178488,110230.0,110220.0,0.41568471]
[1760232904620,0.00178488,110230.0,110220.0,1.00671236]
[1760232904828,0.00178488,110230.0,110220.0,1.00571236]
[1760232905100,0.00178488,110230.0,110220.0,1.00671236]
[1760232905313,0.00178488,110230.0,110220.0,1.00771236]
[1760232905522,0.00178488,110230.0,110220.0,1.00571236]
[1760232905742,0.00178488,110230.0,110220.0,1.00971236]
[1760232909570,0.00178488,110230.0,110220.0,0.77930326]
[1760232910674,0.00178488,110230.0,110220.0,1.04800326]
[1760232915253,0.00178488,110230.0,110220.0,0.77930326]
[1760232917371,0.34178488,110230.0,110220.0,0.38753281]
[1760232918050,0.34147488,110230.0,110220.0,0.38753281]
[1760232918279,0.52291368,110230.0,110220.0,0.20607754]
[1760232918705,0.60616368,110230.0,110220.0,0.004]
[1760232918911,0.60616368,110230.0,110220.0,0.02892]
[1760232918912,0.56794368,110230.0,110220.0,0.02892]
[1760232919123,0.18145527,110220.0,110210.0,0.05793]
[1760232919330,0.2646888,110230.0,110220.0,0.003]
[1760232919543,0.62630735,110230.0,110220.0,0.003]
[1760232919763,0.62630735,110230.0,110220.0,0.001]
[1760232920188,0.2646888,110230.0,110220.0,0.002]
[1760232920660,0.2646888,110230.0,110220.0,0.001]
[1760232921094,0.2646888,110230.0,110220.0,0.002]
[1760232921301,0.6046888,110230.0,110220.0,0.02892]
[1760232921523,0.6044488,110230.0,110220.0,0.02892]
[1760232922421,0.5662288,110230.0,110220.0,0.04879]
[1760232922632,0.5662288,110230.0,110220.0,0.02187]
[1760232922846,0.6044488,110230.0,110220.0,0.002]
[1760232924342,0.6044488,110230.0,110220.0,0.001]
[1760232924556,0.69316814,110230.0,110220.0,0.001]
[1760232924767,1.19669945,110230.0,110220.0,0.001]
[1760232924974,1.19664945,110230.0,110220.0,0.001]
[1760232925187,0.52147173,110210.0,110200.0,0.05793]
[1760232925628,0.52147173,110210.0,110200.0,0.08485]
[1760232925842,0.52147173,110210.0,110200.0,0.11717451]
[1760232926077,0.52147173,110210.0,110200.0,0.29866271]
[1760232926290,0.34,110210.0,110200.0,0.29866271]
[1760232926968,0.52147173,110210.0,110200.0,0.29866271]
[1760232927167,0.52147173,110210.0,110200.0,0.11817451]
[1760232927388,0.52147173,110210.0,110200.0,0.11917451]
[1760232928240,0.52147173,110210.0,110200.0,0.08685]
[1760232929688,0.52147173,110210.0,110200.0,0.2683382]
[1760232930104,0.52142173,110210.0,110200.0,0.2683382]
[1760232930317,0.33995,110210.0,110200.0,0.2683382]
[1760232930541,0.33995,110210.0,110200.0,0.2984901]
[1760232930797,0.33995,110210.0,110200.0,0.41451266]
[1760232931019,0.1811488,110230.0,110210.0,0.181464]
[1760232931230,0.1811488,110230.0,110220.0,0.01987]
[1760232931441,0.2260488,110230.0,110220.0,0.04679]
[1760232931677,0.2260488,110230.0,110220.0,0.01987]
[1760232931903,0.18145527,110220.0,110210.0,0.01987]
[1760232932139,0.53904527,110220.0,110210.0,0.01987]
[1760232932343,0.56539527,110220.0,110210.0,0.04575]
[1760232932949,0.53904527,110220.0,110210.0,0.08371]
[1760232933099,0.52145527,110220.0,110210.0,0.08371]
[1760232933932,0.52145527,110220.0,110210.0,0.08471]
[1760232934196,0.52145527,110220.0,110210.0,0.11328082]
[1760232934393,0.52145527,110220.0,110210.0,0.08471]
[1760232934535,0.52145527,110220.0,110210.0,0.08571]
[1760232934946,0.52145527,110220.0,110210.0,0.08471]
[1760232935531,0.52145527,110220.0,110210.0,0.08571]
[1760232936174,0.52145527,110220.0,110210.0,0.08471]
[1760232936598,0.52145527,110220.0,110210.0,0.08571]
[1760232937476,0.56539527,110220.0,110210.0,0.04775]
[1760232938315,0.56539527,110220.0,110210.0,0.08571]
[1760232938518,0.38394,110220.0,110210.0,0.08571]
[1760232938926,0.56539527,110220.0,110210.0,0.04775]
[1760232939727,0.56539527,110220.0,110210.0,0.04675]
[1760232939933,0.56539527,110220.0,110210.0,0.04575]
[1760232940121,0.56539527,110220.0,110210.0,0.04675]
[1760232940455,0.56539527,110220.0,110210.0,0.04732196]
[1760232940637,0.56539527,110220.0,110210.0,0.04832196]
[1760232940879,0.52145527,110220.0,110210.0,0.04832196]
[1760232941105,0.52145527,110220.0,110210.0,0.05900116]
[1760232941106,0.56539527,110220.0,110210.0,0.05900116]
[1760232941347,0.53904527,110220.0,110210.0,0.08639196]
[1760232941548,0.53904527,110220.0,110210.0,0.08739196]
[1760232941865,0.53904527,110220.0,110210.0,0.08639196]
[1760232942372,0.52145527,110220.0,110210.0,0.08739196]
[1760232942790,0.52145527,110220.0,110210.0,0.1163309]
[1760232943213,0.52145527,110220.0,110210.0,0.13447807]
[1760232943435,0.52145527,110220.0,110210.0,0.1163309]
[1760232944313,0.52145527,110220.0,110210.0,0.08739196]
[1760232945506,0.34,110220.0,110210.0,0.26886369]
[1760232945688,0.20949061,110240.0,110210.0,0.26886369]
[1760232945689,0.00059483,110240.0,110230.0,0.1814388]
[1760232945892,0.00012417,110250.0,110240.0,0.55157425]
[1760232946074,0.07194776,110280.0,110270.0,0.18137299]
[1760232946264,0.00032414,110280.0,110270.0,0.54313152]
[1760232946670,0.04685399,110280.0,110270.0,0.54313152]
[1760232946869,0.00032414,110280.0,110270.0,0.58558029]
[1760232947272,0.00032414,110280.0,110270.0,0.61673219]
[1760232947484,0.00032414,110280.0,110270.0,0.71680708]
[1760232948111,0.00041542,110280.0,110270.0,0.74180707]
[1760232948317,1e-08,110280.0,110270.0,1.20364049]
[1760232948526,1e-08,110280.0,110270.0,1.64364048]
[1760232948741,0.0002,110310.0,110300.0,0.21147556]
[1760232948938,0.0002,110310.0,110300.0,0.709597]
[1760232948939,0.00070301,110310.0,110300.0,0.709597]
[1760232949235,0.00070301,110310.0,110300.0,0.73459699]
[1760232950604,0.00070301,110310.0,110300.0,0.73659699]
[1760232951025,0.00070301,110310.0,110300.0,0.711597]
[1760232951225,0.00070301,110310.0,110300.0,0.713597]
[1760232953112,0.00070301,110310.0,110300.0,0.83859698]
[1760232953750,0.0002,110320.0,110310.0,0.3364591]
[1760232953962,0.00035081,110320.0,110310.0,1.18074129]
[1760232955825,0.00035081,110320.0,110310.0,1.18374129]
[1760232956231,0.00035081,110320.0,110310.0,1.1903771]
[1760232957100,0.00035081,110320.0,110310.0,1.1873771]
[1760232957310,1e-08,110320.0,110310.0,1.1903771]
[1760232957518,0.00475495,110320.0,110310.0,1.1903771]
[1760232957733,0.0002,110330.0,110320.0,0.33644267]
[1760232957943,0.00033678,110330.0,110320.0,0.83456411]
[1760232958649,0.00033678,110330.0,110320.0,1.17456411]
[1760232959048,0.00033678,110330.0,110320.0,1.18056411]
[1760232962580,0.0002,110340.0,110330.0,0.30627433]
[1760232962799,0.0002,110340.0,110330.0,1.26009307]
[1760232963016,0.0002,110340.0,110330.0,1.64254184]
[1760232963320,1e-08,110340.0,110330.0,1.64254184]
[1760232963960,1e-08,110340.0,110330.0,1.67180516]
[1760232964178,1e-08,110340.0,110330.0,1.21297174]
[1760232964385,1e-08,110340.0,110330.0,1.20797174]
[1760232964790,1e-08,110340.0,110330.0,1.21097174]
[1760232965200,1e-08,110340.0,110330.0,1.20797174]
[1760232965855,1e-08,110340.0,110330.0,0.87097174]
[1760232966062,1e-08,110340.0,110330.0,0.87397174]
[1760232967508,1e-08,110340.0,110330.0,0.87097174]
[1760232967736,1e-08,110340.0,110330.0,1.33580516]
[1760232968915,0.0011881,110340.0,110330.0,1.33580516]
[1760232969145,0.0011881,110340.0,110330.0,0.87397174]
[1760232969369,1e-08,110340.0,110330.0,0.87397174]
[1760232969593,1e-08,110350.0,110340.0,0.33640981]
[1760232969817,1e-08,110350.0,110340.0,1.63636467]
[1760232970870,1e-08,110350.0,110340.0,1.63936467]
[1760232971073,1e-08,110350.0,110340.0,1.64236467]
[1760232971493,1e-08,110350.0,110340.0,1.63936467]
[1760232971916,1e-08,110350.0,110340.0,1.64236467]
[1760232973160,1e-08,110370.0,110360.0,0.79821038]
[1760232973369,1e-08,110370.0,110360.0,0.84065915]
[1760232973573,1e-08,110370.0,110360.0,0.37882573]
[1760232974007,1e-08,110370.0,110360.0,0.38245969]
[1760232974667,1e-08,110370.0,110360.0,0.38545969]
[1760232974881,0.34,110420.0,110410.0,0.18114301]
[1760232975089,0.34015076,110420.0,110410.0,0.21743103]
[1760232975532,0.35332028,110420.0,110410.0,0.21743103]
[1760232976170,0.35332028,110420.0,110410.0,0.68026445]
[1760232977031,0.35332028,110420.0,110410.0,0.68126445]
[1760232977240,0.34489924,110420.0,110410.0,0.68126445]
[1760232977459,0.01333399,110420.0,110410.0,0.71141635]
[1760232977678,0.00489924,110420.0,110410.0,0.71141635]
[1760232977900,0.00489924,110420.0,110410.0,0.71041635]
[1760232978119,0.00489924,110420.0,110410.0,0.83541633]
[1760232978333,0.00489924,110420.0,110410.0,0.83741633]
[1760232978995,0.00489924,110420.0,110410.0,0.83641633]
[1760232979203,0.00489924,110420.0,110410.0,0.83741633]
[1760232979632,0.00489924,110420.0,110410.0,0.83641633]
[1760232979836,0.00489924,110420.0,110410.0,0.83741633]
[1760232980372,0.00489924,110420.0,110410.0,0.83941633]
[1760232980596,0.00489924,110420.0,110410.0,0.83741633]
[1760232981012,0.00489924,110420.0,110410.0,0.84041633]
[1760232981709,0.0002,110440.0,110430.0,0.1811102]
[1760232981921,0.00070233,110440.0,110430.0,0.68539239]
[1760232982551,0.00070233,110440.0,110430.0,0.71263526]
[1760232983262,0.00070233,110440.0,110430.0,0.71463526]
[1760232985822,0.00070233,110440.0,110430.0,0.73963525]
[1760232986447,0.00070233,110440.0,110430.0,0.71463526]
[1760232987330,0.0018888,110440.0,110430.0,0.71463526]
[1760232989034,0.0018888,110440.0,110430.0,0.73963525]
[1760232989247,0.0018888,110440.0,110430.0,1.10978715]
[1760232989469,0.0018888,110440.0,110430.0,1.20978714]
[1760232990721,0.0018888,110440.0,110430.0,0.86978714]
[1760232990949,0.0018888,110440.0,110430.0,0.76978715]
[1760232993725,1e-08,110440.0,110430.0,0.76978715]
[1760232993940,1e-08,110440.0,110430.0,0.86978714]
[1760232994858,1e-08,110440.0,110430.0,0.86778714]
[1760232995305,1e-08,110440.0,110430.0,0.87078714]
[1760232996591,3.49454778,110500.0,110480.0,0.18102824]
[1760232996798,0.20706185,110490.0,110480.0,0.19913106]
[1760232997002,0.21548765,110490.0,110480.0,0.19913106]
[1760232997180,0.21548765,110490.0,110480.0,0.01810282]
[1760232997411,0.21548765,110490.0,110480.0,0.03620564]
[1760232997948,0.27516765,110490.0,110480.0,0.01810282]
[1760232998156,0.23510765,110490.0,110480.0,0.01910282]
[1760232998383,0.0540958,110490.0,110480.0,0.21823388]
[1760232998587,0.59356927,110490.0,110480.0,0.01910282]
[1760232998804,0.59356927,110490.0,110480.0,0.03620564]
[1760232999014,0.63362927,110490.0,110480.0,0.01910282]
[1760232999609,0.63362927,110490.0,110480.0,0.001]
[1760233000055,0.02688742,110490.0,110480.0,0.18202824]
[1760233000255,0.36688742,110490.0,110480.0,0.18202824]
[1760233000457,0.36688742,110490.0,110480.0,0.64386166]
[1760233000458,0.0084258,110490.0,110480.0,0.64386166]
[1760233000620,0.0084258,110490.0,110480.0,0.68014968]
[1760233000794,0.3484258,110490.0,110480.0,0.68014968]
[1760233001032,0.34,110490.0,110480.0,0.68014968]
[1760233001445,0.34,110490.0,110480.0,0.67914968]
[1760233001639,0.34,110490.0,110480.0,0.68014968]
[1760233002300,0.34296458,110490.0,110480.0,0.67914968]
[1760233002547,0.34296458,110490.0,110480.0,0.71130158]
[1760233002548,0.00296458,110490.0,110480.0,0.71130158]
[1760233002766,0.00296458,110490.0,110480.0,0.21931626]
[1760233002970,0.00296458,110490.0,110480.0,0.71130158]
[1760233004539,0.00296458,110490.0,110480.0,0.18302824]
[1760233004943,0.00296458,110490.0,110480.0,0.64486166]
[1760233005590,0.00296458,110490.0,110480.0,0.18302824]
[1760233005741,0.00296458,110490.0,110480.0,0.64486166]
[1760233005954,0.37314458,110490.0,110480.0,0.002]
[1760233006146,0.39638458,110490.0,110480.0,0.002]
[1760233006360,0.34296458,110490.0,110480.0,0.18302824]
[1760233006818,0.34296458,110490.0,110480.0,0.64486166]
[1760233007036,0.34296458,110490.0,110480.0,0.002]
[1760233007280,0.62072643,110490.0,110480.0,0.18102824]
[1760233007491,0.52102824,110480.0,110470.0,0.18104365]
[1760233007917,0.34,110480.0,110470.0,0.18104365]
[1760233008122,0.52102824,110480.0,110470.0,0.03711553]
[1760233008335,0.34,110480.0,110470.0,0.23626461]
[1760233008553,0.34,110480.0,110470.0,0.21816015]
[1760233009176,0.34,110480.0,110470.0,0.22016015]
[1760233010297,3.58557857,110500.0,110490.0,0.18101185]
[1760233010525,3.58557857,110500.0,110490.0,0.21721448]
[1760233010526,3.25404548,110500.0,110490.0,0.21721448]
[1760233010739,3.24557857,110500.0,110490.0,0.83659574]
[1760233010949,3.58557857,110500.0,110490.0,0.83659574]
[1760233011373,3.24557857,110500.0,110490.0,0.83659574]
[1760233011789,3.58557857,110500.0,110490.0,0.83659574]
[1760233012001,3.58557857,110500.0,110490.0,0.03620263]
[1760233012208,3.58557857,110500.0,110490.0,0.21721448]
[1760233012887,3.58557857,110500.0,110490.0,0.83659574]
[1760233014374,3.58557857,110500.0,110490.0,0.83859574]
[1760233014781,3.58557857,110500.0,110490.0,0.21921448]
[1760233015198,3.58557857,110500.0,110490.0,0.28911448]
[1760233016003,3.79675404,110500.0,110490.0,0.10810263]
[1760233016241,3.81999404,110500.0,110490.0,0.0719]
[1760233016655,3.81999404,110500.0,110490.0,0.25291185]
[1760233017080,3.58557857,110500.0,110490.0,0.25291185]
[1760233017284,3.58557857,110500.0,110490.0,0.25091185]
[1760233017462,3.58557857,110500.0,110490.0,0.29410448]
[1760233017688,3.58557857,110500.0,110490.0,0.29510448]
[1760233018151,3.58557857,110500.0,110490.0,0.29410448]
[1760233018266,3.58913575,110500.0,110490.0,0.29510448]
[1760233018635,3.77013122,110500.0,110490.0,0.29510448]
[1760233018836,3.77013122,110500.0,110490.0,0.0709]
[1760233018837,3.82355122,110500.0,110490.0,0.0709]
[1760233019079,3.58913575,110500.0,110490.0,0.0709]
[1760233019272,3.58913575,110500.0,110490.0,0.25191185]
[1760233019677,3.77013122,110500.0,110490.0,0.25191185]
[1760233019883,3.58913575,110500.0,110490.0,0.25191185]
[1760233020124,3.58913575,110500.0,110490.0,0.29520537]
[1760233020547,3.58913575,110500.0,110490.0,0.11419352]
[1760233020758,3.58913575,110500.0,110490.0,0.25191185]
[1760233020969,3.82355122,110500.0,110490.0,0.25191185]
[1760233021189,3.58913575,110500.0,110490.0,0.25191185]
[1760233022479,3.24913575,110500.0,110490.0,0.28206375]
[1760233022692,3.24913575,110500.0,110490.0,0.87129311]
[1760233022903,3.58913575,110500.0,110490.0,0.87129311]
[1760233024015,3.58913575,110500.0,110490.0,0.28206375]
[1760233024449,3.58913575,110500.0,110490.0,0.25191185]
[1760233024664,3.86745122,110500.0,110490.0,0.0709]
[1760233025073,3.87592306,110500.0,110490.0,0.0709]
[1760233025332,3.87592354,110500.0,110490.0,0.0709]
[1760233025753,8.5319019,110500.0,110490.0,0.0709]
[1760233025966,8.55142633,110500.0,110490.0,0.0709]
[1760233026180,7.96219697,110500.0,110490.0,0.0709]
[1760233026391,7.96219697,110500.0,110490.0,0.0699]
[1760233026819,8.55142633,110500.0,110490.0,0.0709]
[1760233027030,8.55142633,110500.0,110490.0,0.07789]
[1760233027031,4.48467733,110500.0,110490.0,0.07789]
[1760233027235,3.87592354,110500.0,110490.0,0.07689]
[1760233027442,3.87592354,110500.0,110490.0,0.0699]
[1760233028491,3.86745122,110500.0,110490.0,0.0699]
[1760233030408,4.45668058,110500.0,110490.0,0.0699]
[1760233031579,0.18105614,110470.0,110450.0,0.26175381]
[1760233031794,0.18106101,110460.0,110450.0,0.26175381]
[1760233032203,0.20412614,110470.0,110450.0,0.19013019]
[1760233032627,0.18106101,110460.0,110450.0,0.19013019]
[1760233032838,0.18107991,110450.0,110430.0,0.21215642]
[1760233033081,0.52107991,110450.0,110440.0,0.1810938]